bitfinex-derivatives/quotes_ETHF0:USTF0_20250616
["timestamp","ask_amount","ask_price","bid_price","bid_amount"]
[1750114275741,3.2078,2556.7,2555.2,3.2078]
[1750114275932,3.2078,2556.7,2555.6,3.2078]
[1750114276133,10.48431349,2557.0,2556.4,3.2078]
[1750114276134,3.2078,2557.0,2556.4,3.2078]
[1750114276334,3.7808,2557.3,2556.4,3.2078]
[1750114276335,5.6562,2556.9,2556.4,3.2078]
[1750114276635,3.2078,2556.7,2554.8,7.1497]
[1750114276838,0.00587165,2556.0,2555.5,0.00587165]
[1750114277039,0.00587165,2556.0,2555.9,0.7822]
[1750114277241,1.65e-06,2556.0,2555.9,0.7822]
[1750114277434,1.65e-06,2556.0,2555.9,11.6133]
[1750114277636,3.2078,2557.3,2557.2,0.7818]
[1750114277831,8.864,2558.1,2557.2,8.2078]
[1750114278031,3.2078,2557.5,2556.3,3.2078]
[1750114278235,3.2078,2556.5,2556.0,5.716]
[1750114278437,3.98969,2557.0,2556.2,3.2078]
[1750114278635,6.21497165,2556.9,2556.3,0.00587165]
[1750114278844,3.2078,2556.7,2556.3,0.00587165]
[1750114279037,0.00587165,2556.9,2556.3,0.00587165]
[1750114279231,0.00587165,2556.9,2556.4,3.2078]
[1750114279439,1.65e-06,2556.9,2556.8,3.98972]
[1750114279839,3.2078,2558.2,2556.8,8.2078]
[1750114280135,3.2078,2558.2,2556.4,3.9076]
[1750114280136,3.2078,2558.2,2557.7,3.2078]
[1750114280336,0.07818302,2558.1,2557.9,3.2078]
[1750114280537,0.07818302,2558.1,2557.6,3.2078]
[1750114280740,3.2078,2557.8,2557.6,0.00587165]
[1750114281133,0.08405467,2558.1,2557.7,3.2078]
[1750114281339,3.2078,2557.8,2556.3,3.2078]
[1750114281538,3.2078,2557.8,2555.1,45.044]
[1750114281539,3.2078,2557.1,2556.0,3.2078]
[1750114281748,3.2078,2557.8,2557.0,3.2078]
[1750114281943,0.07818302,2558.1,2558.0,0.78155]
[1750114282140,0.07818302,2558.1,2558.0,3.98935]
[1750114282338,0.07818302,2558.1,2557.8,0.00587165]
[1750114282642,3.2078,2557.9,2557.8,0.00587165]
[1750114282837,3.2078,2557.9,2556.8,5.6842]
[1750114283033,3.2078,2557.9,2557.0,0.78184]
[1750114283034,3.2078,2557.5,2557.0,0.78184]
[1750114283244,0.06737406,2556.9,2556.8,5.6842]
[1750114283543,0.06737406,2556.9,2556.7,3.98973]
[1750114283748,4.06e-06,2556.9,2556.8,0.78192]
[1750114283939,4.06e-06,2556.9,2556.8,11.46612]
[1750114284242,3.2078,2558.8,2558.2,0.78149]
[1750114284442,0.78135,2558.7,2558.0,0.00587165]
[1750114284646,3.2078,2558.8,2558.0,0.00587165]
[1750114285152,2.09009716,2559.7,2558.2,3.2078]
[1750114285440,3.2078,2559.3,2558.4,3.2078]
[1750114285637,3.2078,2559.0,2558.0,0.00587165]
[1750114285834,3.2078,2559.0,2557.0,1.9546]
[1750114285835,13.69211349,2558.3,2557.1,3.2078]
[1750114286033,3.2078,2557.2,2556.4,3.2078]
[1750114286237,10.48431349,2557.6,2556.0,8.9648]
[1750114286238,0.06737406,2556.9,2556.0,8.9648]
[1750114286445,0.06737406,2556.9,2556.4,3.2078]
[1750114286642,0.06737406,2556.9,2556.8,0.78192]
[1750114286842,0.06737406,2556.9,2556.6,0.00587165]
[1750114287049,0.06737406,2556.9,2556.7,3.2078]
[1750114287344,0.00587165,2557.1,2556.6,0.00587165]
[1750114287345,3.21367165,2557.1,2556.6,0.00587165]
[1750114287647,3.21367165,2557.1,2557.0,0.78186]
[1750114287648,0.00587165,2557.1,2557.0,0.78186]
[1750114287851,0.00587165,2557.1,2557.0,11.64286]
[1750114288038,3.2078,2557.8,2557.0,10.861]
[1750114288240,3.2078,2557.8,2557.3,3.2078]
[1750114288449,3.2078,2557.5,2556.6,3.21367165]
[1750114288642,3.2078,2557.5,2557.4,0.78174]
[1750114288842,5.8906,2557.7,2557.6,0.78168]
[1750114289045,0.00587165,2557.9,2557.6,3.2078]
[1750114289250,3.2078,2557.8,2556.4,3.2078]
[1750114289545,0.00587165,2557.9,2556.3,3.2078]
[1750114289546,3.2078,2557.1,2556.3,3.2078]
[1750114289850,3.2078,2556.7,2556.3,3.2078]
[1750114290145,9.0984,2557.0,2556.3,3.2078]
[1750114290357,9.0984,2557.0,2555.8,7.81655]
[1750114290358,3.2078,2557.3,2556.4,3.21367165]
[1750114290651,3.2078,2557.7,2556.7,3.2078]
[1750114290846,3.2078,2557.4,2556.5,5.946]
[1750114291151,3.2078,2557.0,2556.4,0.00587165]
[1750114291350,3.2078,2556.7,2556.4,0.00587165]
[1750114291538,3.2078,2556.9,2556.4,0.00587165]
[1750114291853,3.2078,2557.3,2557.2,0.7818]
[1750114292036,3.2078,2557.3,2556.6,3.2078]
[1750114292241,3.2078,2557.3,2557.2,0.7818]
[1750114292441,3.2078,2557.3,2556.6,3.2078]
[1750114292741,3.2078,2557.3,2556.4,0.00587165]
[1750114292742,3.2078,2557.0,2556.4,0.00587165]
[1750114293142,3.2078,2557.3,2557.2,0.78178]
[1750114293350,3.2078,2557.3,2556.4,0.00587165]
[1750114293640,10.49018514,2557.9,2556.4,0.00587165]
[1750114293641,3.2078,2556.7,2556.4,0.00587165]
[1750114293841,3.2078,2557.4,2556.4,3.21367165]
[1750114294040,0.00587165,2557.9,2557.8,0.78162]
[1750114294240,0.08406078,2557.9,2557.8,0.78162]
[1750114294440,0.08406078,2557.9,2556.6,3.90982]
[1750114294441,8.29186078,2557.9,2557.1,3.2078]
[1750114294638,8.29186078,2557.9,2556.6,1.95496]
[1750114294639,3.2078,2557.6,2556.7,9.2436]
[1750114294841,0.08406078,2557.9,2556.7,9.2436]
[1750114294842,3.29186078,2557.9,2556.8,3.2078]
[1750114295043,3.29186078,2557.9,2557.1,3.2078]
[1750114295249,3.2078,2557.2,2556.0,3.2078]
[1750114295448,0.08406078,2557.9,2554.7,45.043]
[1750114295449,0.08406078,2557.9,2557.1,3.2078]
[1750114295645,3.2078,2557.7,2556.9,0.78186]
[1750114295839,3.2078,2557.4,2556.5,9.2436]
[1750114296143,0.08406078,2557.9,2553.3,78.29778]
[1750114296144,3.2078,2557.1,2555.4,45.043]
[1750114296344,0.08406078,2557.9,2557.0,3.2078]
[1750114296543,0.08406078,2557.9,2557.1,9.0107]
[1750114296845,6.1762,2557.8,2557.0,3.2078]
[1750114297040,3.2078,2557.1,2556.4,0.00587165]
[1750114297242,3.2078,2557.8,2557.2,0.78178]
[1750114297443,0.06737406,2557.3,2557.2,0.7818]
[1750114297752,0.06737406,2557.3,2556.5,5.8029]
[1750114297951,6.1762,2557.2,2556.4,0.00587165]
[1750114298151,6.1762,2557.2,2556.6,3.2078]
[1750114298355,3.2078,2556.9,2556.5,0.782]
[1750114298547,6.1762,2556.8,2556.5,0.782]
[1750114298849,1.95991165,2557.9,2556.6,3.2078]
[1750114298850,3.2078,2557.6,2556.6,3.2078]
[1750114299050,4.98427288,2559.4,2557.7,1.9541]
[1750114299051,3.2078,2559.1,2557.7,1.9541]
[1750114299250,8.9232,2558.8,2558.3,0.78144]
[1750114299457,8.9232,2558.8,2557.8,9.3118]
[1750114299655,3.2078,2558.4,2557.8,6.104]
[1750114299861,3.2078,2558.4,2557.9,3.2078]
[1750114300050,5.7154,2558.3,2558.0,0.78153]
[1750114300251,5.7154,2558.3,2557.9,0.78744165]
[1750114300454,3.21367165,2558.4,2558.3,0.78146]
[1750114300455,0.00587165,2558.4,2558.3,0.78146]
[1750114300750,3.2078,2559.1,2558.2,3.2078]
[1750114300958,3.2078,2559.1,2558.9,0.78128]
[1750114300959,0.07815552,2559.0,2558.9,0.78128]
[1750114301253,0.07815552,2559.0,2558.3,6.104]
[1750114301254,0.07815552,2559.0,2558.3,3.2078]
[1750114301454,5.79355552,2559.0,2558.3,3.2078]
[1750114301649,0.08403023,2558.9,2558.8,0.78131]
[1750114301851,0.08403023,2558.9,2558.4,6.104]
[1750114302049,3.2078,2558.7,2557.9,0.00587165]
[1750114302256,3.2078,2558.1,2557.9,0.00587165]
[1750114302554,0.07816774,2558.6,2557.9,0.00587165]
[1750114302555,0.07816774,2558.6,2557.9,3.21367165]
[1750114302748,0.07816774,2558.6,2558.5,0.7814]
[1750114302948,0.00587165,2558.9,2558.8,0.78131]
[1750114303151,0.00587165,2558.9,2558.8,3.2078]
[1750114303349,0.00587165,2558.9,2558.8,0.78131]
[1750114303550,0.00587165,2558.9,2558.8,3.98911]
[1750114304155,3.2078,2559.3,2558.8,3.98911]
[1750114304156,3.2078,2559.3,2559.2,0.78119]
[1750114304343,3.2078,2559.3,2558.8,8.2078]
[1750114304344,3.2078,2559.3,2558.8,3.2078]
[1750114304549,3.2078,2560.2,2558.9,9.4192]
[1750114304753,3.2078,2560.2,2558.4,1.95356]
[1750114304754,3.2078,2559.5,2558.3,3.2078]
[1750114305055,5.8592,2559.4,2558.7,3.2078]
[1750114305255,3.2078,2560.3,2559.3,3.2078]
[1750114305555,3.2078,2559.6,2558.9,3.2078]
[1750114305755,6.2318,2559.5,2558.8,0.00585995]
[1750114305952,3.2078,2558.9,2558.8,0.00585995]
[1750114306350,8.2078,2558.9,2557.8,3.2078]
[1750114306546,6.2318,2558.8,2558.4,0.78141]
[1750114306752,0.78134,2558.7,2558.0,0.78153]
[1750114307052,4.58734,2559.4,2558.8,0.78131]
[1750114307257,0.7813,2558.9,2558.3,0.78145]
[1750114307552,0.7813,2558.9,2558.3,0.00585995]
[1750114307553,3.2078,2558.5,2558.3,0.00585995]
[1750114307758,6.2318,2558.4,2558.3,0.00585995]
[1750114307954,6.2318,2558.4,2556.7,3.2078]
[1750114307955,0.78181,2557.2,2556.7,3.2078]
[1750114308151,0.78165,2557.7,2557.1,3.98962]
[1750114308464,0.78165,2557.7,2556.1,7.81038]
[1750114308465,3.27517406,2557.3,2556.1,6.63721]
[1750114308651,3.27517406,2557.3,2557.1,3.2078]
[1750114308652,0.06737406,2557.3,2557.1,3.2078]
[1750114308852,3.2078,2559.0,2557.1,8.2078]
[1750114309061,3.2078,2559.4,2558.9,3.2078]
[1750114309359,0.00585995,2559.4,2559.3,3.2078]
[1750114309552,0.78117,2559.3,2559.1,0.00585995]
[1750114309756,3.21365995,2559.4,2558.2,3.2078]
[1750114309964,3.2078,2558.7,2557.6,3.2078]
[1750114310162,5.8352,2558.6,2558.2,3.2078]
[1750114310466,0.78138,2558.6,2558.2,3.2078]
[1750114311164,9.043,2558.9,2558.4,3.2078]
[1750114311351,9.043,2558.9,2558.1,0.00585995]
[1750114311559,0.78148,2558.2,2558.1,0.00585995]
[1750114311950,5.78148,2558.2,2558.1,0.00585995]
[1750114312151,0.78178,2557.3,2556.2,3.2078]
[1750114312361,3.2078,2557.6,2557.0,3.2078]
[1750114312651,1.95348,2558.6,2556.1,5.97672]
[1750114312652,3.2078,2558.8,2557.6,0.78165]
[1750114312857,3.2078,2558.8,2557.5,3.2078]
[1750114312858,3.2078,2558.8,2558.3,3.2078]
[1750114313060,3.2078,2559.9,2558.7,3.2078]
[1750114313262,3.2078,2560.3,2559.7,3.2078]
[1750114313456,3.2078,2560.7,2559.7,3.2078]
[1750114313661,3.2078,2561.1,2560.4,3.2078]
[1750114314261,0.00585995,2561.0,2560.5,0.00585995]
[1750114314563,6.98260995,2561.0,2560.5,0.00585995]
[1750114314864,9.95e-06,2561.0,2560.9,3.98847]
[1750114315054,3.2078,2562.0,2560.9,3.2078]
[1750114315253,3.2078,2561.6,2561.1,3.2078]
[1750114315457,3.2078,2561.6,2560.7,9.84691]
[1750114315764,0.78044,2561.7,2560.7,3.2078]
[1750114315765,3.2078,2561.7,2560.7,3.2078]
[1750114315962,3.2078,2561.1,2560.9,0.00585995]
[1750114316159,6.1961,2561.0,2560.9,0.00585995]
[1750114316463,0.00585995,2561.5,2560.9,0.00585995]
[1750114316857,0.00585995,2561.5,2561.0,3.2078]
[1750114317268,0.00585995,2561.5,2561.0,3.98842]
[1750114317563,0.00585995,2561.5,2560.9,0.00585995]
[1750114317871,0.00585995,2561.5,2561.0,3.2078]
[1750114318059,0.00585995,2561.5,2561.0,9.3112]
[1750114318260,3.2078,2562.4,2561.3,3.2078]
[1750114318465,6.2399,2562.3,2561.4,3.2078]
[1750114318663,3.7832,2563.2,2562.2,3.2078]
[1750114318664,3.2078,2563.0,2562.2,3.2078]
[1750114319169,6.2399,2562.9,2562.2,3.98806]
[1750114319370,0.00585995,2562.8,2562.3,0.00585995]
[1750114319566,3.2078,2562.7,2562.3,0.00585995]
[1750114319964,6.2399,2562.7,2562.3,0.00585995]
[1750114320268,0.00585995,2562.8,2562.7,0.78012]
[1750114320471,3.2078,2563.6,2562.3,3.21365995]
[1750114320765,3.2078,2562.6,2560.9,3.2078]
[1750114320968,3.2078,2561.3,2560.6,3.2078]
[1750114321167,3.2078,2561.3,2560.1,1.95226]
[1750114321168,3.2078,2561.7,2560.5,3.2078]
[1750114321359,5.7952,2561.2,2560.8,0.00585995]
[1750114321562,3.21365995,2561.4,2560.8,0.00585995]
[1750114321762,0.00585995,2561.4,2561.3,0.78055]
[1750114321968,9.95e-06,2561.4,2561.3,3.2078]
[1750114322171,8.20780995,2561.4,2560.8,0.00585995]
[1750114322365,9.95e-06,2561.4,2560.9,3.2078]
[1750114322563,9.95e-06,2561.4,2560.8,0.00585995]
[1750114322564,9.95e-06,2561.4,2561.0,3.2078]
[1750114322868,9.95e-06,2561.4,2561.3,3.98835]
[1750114323060,3.2078,2562.5,2561.3,8.2078]
[1750114323260,9.003,2563.2,2562.3,3.2078]
[1750114323462,9.003,2563.2,2562.4,0.78021]
[1750114323662,9.003,2563.2,2560.9,48.9965]
[1750114323663,3.2078,2562.8,2562.1,3.2078]
[1750114323969,3.2078,2563.2,2562.7,0.7801]
[1750114324168,3.2078,2563.9,2563.0,3.2078]
[1750114324367,3.2078,2564.2,2563.6,3.2078]
[1750114324565,0.00579664,2563.3,2563.2,0.00585995]
[1750114324768,3.2078,2564.2,2563.2,0.00585995]
[1750114324968,3.2078,2564.2,2563.6,3.2078]
[1750114325173,3.2078,2564.2,2563.7,6.3253]
[1750114325365,1.9483,2565.4,2563.7,6.3253]
[1750114325366,3.2078,2564.5,2563.9,3.2078]
[1750114325669,3.2078,2564.5,2563.7,6.3253]
[1750114325670,0.07799095,2564.4,2563.7,6.3253]
[1750114325873,0.07799095,2564.4,2564.0,3.2078]
[1750114326172,0.07799095,2564.4,2564.2,3.2078]
[1750114326373,0.07799095,2564.4,2563.9,3.2078]
[1750114326573,0.07799095,2564.4,2564.0,5.9537]
[1750114326774,0.07799095,2564.4,2564.1,3.2078]
[1750114326965,10.48431349,2566.0,2564.1,3.2078]
[1750114326966,3.2078,2565.2,2564.1,8.2078]
[1750114327166,3.2078,2565.2,2564.5,3.2078]
[1750114327373,3.2078,2565.2,2564.2,3.2078]
[1750114327572,4.0943,2565.7,2564.7,0.77949]
[1750114327573,3.2078,2565.3,2564.7,0.77949]
[1750114327872,0.77946,2564.9,2564.2,3.2078]
[1750114328080,3.2078,2564.9,2564.1,3.2078]
[1750114328267,5.7584,2564.8,2564.1,3.2078]
[1750114328472,3.2078,2564.9,2564.4,3.2078]
[1750114328673,5.7584,2564.7,2564.4,3.2078]
[1750114328972,3.2078,2564.5,2563.8,0.00585995]
[1750114329174,0.77948,2564.8,2563.9,3.98753]
[1750114329473,0.77948,2564.8,2564.2,3.2078]
[1750114329474,3.2078,2564.8,2564.2,3.2078]
[1750114329674,0.07797878,2564.8,2564.2,3.2078]
[1750114330070,0.07797878,2564.8,2564.5,3.98737]
[1750114330282,0.07797878,2564.8,2564.5,3.2078]
[1750114330571,5.07797878,2564.8,2564.5,3.2078]
[1750114330775,0.07797878,2564.8,2564.4,3.2078]
[1750114330968,0.07797878,2564.8,2564.7,3.98731]
[1750114331169,3.2078,2565.6,2564.7,3.2078]
[1750114331374,0.07795751,2565.5,2565.0,3.2078]
[1750114331672,3.28575751,2565.5,2565.0,0.00584818]
[1750114331975,0.77939,2565.1,2565.0,0.00584818]
[1750114332181,0.77949,2564.8,2564.0,5.9383]
[1750114332378,0.07796966,2565.1,2564.6,0.77953]
[1750114332675,0.07796966,2565.1,2564.8,3.2078]
[1750114332877,0.07796966,2565.1,2564.6,6.96864]
[1750114333068,0.07796966,2565.1,2564.6,6.1891]
[1750114333277,0.08377862,2565.1,2565.0,0.77942]
[1750114333575,0.08377862,2565.1,2564.9,0.77944]
[1750114333770,0.08377862,2565.1,2565.0,0.77942]
[1750114333971,0.08377862,2565.1,2564.8,3.2078]
[1750114334368,0.08377862,2565.1,2564.8,3.98727]
[1750114334574,0.08377862,2565.1,2564.9,6.1891]
[1750114334771,0.08377862,2565.1,2564.9,3.2078]
[1750114334976,0.08377862,2565.1,2564.6,3.99317818]
[1750114335275,0.08377862,2565.1,2564.6,3.21364818]
[1750114335476,0.08377862,2565.1,2565.0,0.77942]
[1750114335777,0.08377862,2565.1,2564.9,3.2078]
[1750114335973,0.08377862,2565.1,2565.0,6.50702]
[1750114336171,0.08377862,2565.1,2565.0,5.7276]
[1750114336368,0.08377862,2565.1,2565.0,6.50702]
[1750114336680,0.00580896,2565.1,2564.7,3.2078]
[1750114336977,8.96e-06,2565.1,2565.0,3.98722]
[1750114337476,8.96e-06,2565.1,2565.0,8.98722]
[1750114338680,8.96e-06,2565.1,2565.0,3.98722]
[1750114338875,8.96e-06,2565.1,2565.0,8.98722]
[1750114339179,8.96e-06,2565.1,2565.0,3.98722]
[1750114339381,8.96e-06,2565.1,2565.0,8.98722]
[1750114339578,8.96e-06,2565.1,2565.0,3.2078]
[1750114339886,0.06738302,2565.1,2565.0,3.2078]
[1750114340275,0.06738302,2565.1,2565.0,3.98722]
[1750114340570,0.06738302,2565.1,2565.0,3.2078]
[1750114340771,0.06738302,2565.1,2565.0,3.98722]
[1750114340979,3.2078,2565.8,2565.7,0.77921]
[1750114341284,3.2078,2565.8,2565.2,3.2078]
[1750114341285,8.69962869,2565.8,2565.2,3.2078]
[1750114341486,0.77944,2565.0,2564.6,0.00584818]
[1750114341785,8.69962869,2564.7,2563.2,0.77995]
[1750114341975,8.69962869,2564.7,2563.7,0.77982]
[1750114341976,8.69962869,2563.8,2563.7,0.77982]
[1750114342286,3.2078,2564.3,2563.6,3.2078]
[1750114342478,10.5137,2564.9,2563.0,6.371]
[1750114342479,8.69962869,2563.8,2563.3,3.2078]
[1750114342778,8.69962869,2563.5,2563.3,0.00584818]
[1750114343282,8.21364818,2563.8,2563.4,3.2078]
[1750114343283,0.00584818,2563.8,2563.4,3.2078]
[1750114343485,0.00584818,2563.8,2563.4,9.5788]
[1750114343684,0.00584818,2563.8,2563.3,0.78576818]
[1750114343979,0.00584818,2563.8,2563.3,0.00584818]
[1750114344182,6.39424818,2563.8,2563.3,0.00584818]
[1750114344679,11.90742869,2563.6,2563.3,0.00584818]
[1750114344876,6.1236,2563.5,2562.4,3.2078]
[1750114345177,3.2078,2562.6,2562.5,0.07804878]
[1750114345375,3.2078,2562.7,2562.5,0.07804878]
[1750114345574,9.3314,2562.7,2562.5,0.07804878]
[1750114345775,14.3314,2562.7,2561.9,3.2078]
[1750114346084,14.3314,2562.7,2560.7,4.04511889]
[1750114346085,8.69962869,2562.1,2562.0,0.78617818]
[1750114346379,0.00584818,2562.3,2562.2,0.78027]
[1750114346584,0.00584818,2562.3,2562.2,3.98807]
[1750114346778,0.00584818,2562.3,2562.2,3.2078]
[1750114347082,5.00584818,2562.3,2562.0,0.00584818]
[1750114347273,0.00584818,2562.3,2562.0,0.00584818]
[1750114347581,8.18e-06,2562.3,2562.0,0.00584818]
[1750114347780,8.18e-06,2562.3,2562.2,0.78027]
[1750114347985,8.18e-06,2562.3,2562.2,45.70627]
[1750114348287,8.69962869,2564.2,2562.2,53.1338]
[1750114348581,8.69962869,2564.2,2563.5,3.2078]
[1750114348788,6.505,2564.1,2563.8,0.77978]
[1750114348974,8.69962869,2564.2,2563.8,3.2078]
[1750114349376,6.505,2564.1,2563.8,3.2078]
[1750114349575,0.00584818,2564.3,2563.8,3.2078]
[1750114349777,8.69962869,2565.0,2564.8,0.77946]
[1750114349979,8.69962869,2565.0,2564.1,3.2078]
[1750114350183,8.69962869,2565.0,2564.6,3.2078]
[1750114350374,4.195,2566.0,2563.9,1.94935]
[1750114350375,8.69962869,2565.4,2564.9,3.98723]
[1750114350577,3.2078,2565.2,2564.4,3.2078]
[1750114350881,8.69962869,2565.4,2564.7,3.2078]
[1750114351076,8.69962869,2565.0,2564.7,3.2078]
[1750114351285,8.69962869,2565.0,2564.6,0.77954]
[1750114351585,6.387,2565.3,2564.7,3.2078]
[1750114351977,6.387,2565.3,2564.7,3.9873]
[1750114352374,6.387,2565.3,2564.7,3.2078]
[1750114352685,6.387,2565.3,2564.5,0.00584818]
[1750114352686,3.2078,2564.8,2564.5,0.00584818]
[1750114352885,8.69962869,2565.0,2564.5,0.00584818]
[1750114353090,11.90742869,2564.6,2564.5,0.00584818]
[1750114353287,8.69962869,2564.6,2564.5,0.00584818]
[1750114353485,3.2078,2564.7,2564.5,0.00584818]
[1750114353882,3.2078,2565.0,2564.5,0.00584818]
[1750114354081,3.2078,2565.0,2564.9,0.77945]
[1750114354282,0.06737406,2565.1,2564.9,0.77945]
[1750114354283,0.06737406,2565.1,2565.0,0.77942]
[1750114355081,6.5098,2565.6,2565.1,0.77938]
[1750114355284,6.5098,2565.6,2565.0,6.0722]
[1750114355285,6.5098,2565.6,2565.4,3.2078]
[1750114355488,8.69962869,2565.8,2565.4,3.2078]
[1750114355784,6.5098,2566.1,2565.4,3.2078]
[1750114355979,0.77929,2565.5,2564.8,0.77946]
[1750114356179,8.69962869,2565.8,2565.5,0.77926]
[1750114356382,8.69962869,2565.8,2565.6,0.77922]
[1750114356682,8.69962869,2565.8,2565.7,0.77921]
[1750114356878,6.5098,2566.0,2565.9,0.77915]
[1750114357086,8.69962869,2566.6,2566.2,0.77904]
[1750114357275,9.3802,2566.7,2566.6,0.77894]
[1750114357479,3.2078,2567.0,2566.3,3.2078]
[1750114357686,3.2078,2567.0,2566.4,6.5122]
[1750114357882,6.1724,2567.3,2566.7,3.2078]
[1750114358181,3.2078,2567.7,2567.0,3.2078]
[1750114358381,8.69962869,2567.1,2566.6,3.2078]
[1750114358587,8.69962869,2567.1,2566.6,0.77893]
[1750114358780,3.47571916,2567.6,2566.8,3.2078]
[1750114358979,3.47571916,2567.6,2566.2,51.4252]
[1750114358980,0.07789678,2567.5,2567.0,0.77879]
[1750114359281,0.07789678,2567.5,2567.1,3.2078]
[1750114359488,0.26791916,2567.6,2566.6,8.4595]
[1750114359489,1e-08,2567.6,2567.5,0.77866]
[1750114359783,1e-08,2567.6,2567.4,3.2078]
[1750114359985,8.20780001,2567.6,2567.0,0.77879]
[1750114360286,11.90742869,2567.1,2566.3,3.2078]
[1750114360485,6.4732,2567.0,2566.4,3.2078]
[1750114360681,3.2078,2567.2,2566.4,3.2078]
[1750114360882,6.4732,2567.5,2567.2,0.77873]
[1750114361083,6.4732,2567.5,2566.8,0.77886]
[1750114361283,8.69962869,2567.2,2566.6,3.2078]
[1750114361781,8.69962869,2567.2,2566.9,3.2078]
[1750114361982,1e-08,2567.6,2567.0,0.77878]
[1750114361983,8.6996287,2567.6,2567.0,0.77878]
[1750114362183,6.4732,2567.5,2566.9,3.2078]
[1750114362388,1e-08,2567.6,2567.5,0.77865]
[1750114362787,5.00000001,2567.6,2567.3,0.77869]
[1750114362989,6.3331,2567.5,2567.4,0.77868]
[1750114363392,1e-08,2567.6,2567.5,0.77865]
[1750114363592,8.6996287,2567.6,2567.2,3.2078]
[1750114363791,6.3331,2567.5,2567.2,3.2078]
[1750114363988,11.90742869,2567.4,2566.5,9.4295]
[1750114364189,6.3331,2567.3,2566.8,3.2078]
[1750114364490,3.2078,2567.2,2566.5,3.2078]
[1750114364692,6.3331,2567.1,2566.5,3.2078]
[1750114365095,6.3331,2567.1,2566.8,3.2078]
[1750114365287,1e-08,2567.6,2566.8,3.2078]
[1750114365492,1e-08,2567.6,2567.3,0.7787]
[1750114365796,1e-08,2567.6,2567.2,3.2078]
[1750114365988,1e-08,2567.6,2567.5,0.77865]
[1750114366181,1e-08,2567.6,2566.9,3.2078]
[1750114366488,3.2078,2567.3,2566.7,0.77888]
[1750114366691,3.2078,2567.3,2566.5,3.2078]
[1750114366692,6.0526,2567.2,2566.8,3.2078]
[1750114366889,6.0526,2567.2,2567.0,0.7788]
[1750114367091,6.0526,2567.2,2566.8,3.2078]
[1750114367290,1e-08,2567.6,2567.1,3.2078]
[1750114367687,1e-08,2567.6,2567.4,3.2078]
[1750114367892,1e-08,2567.6,2567.5,0.77865]
[1750114368098,1e-08,2567.6,2567.1,3.2078]
[1750114368291,1e-08,2567.6,2567.2,6.0926]
[1750114368496,1e-08,2567.6,2567.4,3.2078]
[1750114368898,9.2604,2568.9,2567.5,50.9736]
[1750114369193,8.69962869,2569.3,2568.6,0.77831]
[1750114369194,0.77813,2569.3,2568.6,0.77831]
[1750114369391,6.5058,2569.5,2569.0,3.2078]
[1750114369594,6.5058,2569.5,2568.8,3.2078]
[1750114369892,11.90742869,2569.3,2568.5,3.2078]
[1750114370196,8.69962869,2569.3,2568.7,0.77828]
[1750114370393,0.77824,2568.9,2568.3,3.2078]
[1750114370590,11.90742869,2569.3,2568.7,3.2078]
[1750114370793,6.5058,2568.9,2568.4,3.2078]
[1750114370987,18.41322869,2568.9,2567.9,3.21364818]
[1750114371192,8.69962869,2568.5,2567.9,0.00584818]
[1750114371499,0.77828,2568.8,2568.2,3.2078]
[1750114371694,6.5058,2568.5,2568.2,3.98624]
[1750114371893,0.77816,2569.2,2568.5,0.77833]
[1750114372097,5.9627,2569.1,2568.5,3.2078]
[1750114372500,5.9627,2569.1,2568.9,3.2078]
[1750114372795,3.9838,2569.8,2569.2,0.77813]
[1750114372997,3.9838,2569.8,2569.3,3.2078]
[1750114373189,5.9627,2569.7,2569.5,0.77803]
[1750114373391,5.9627,2569.7,2569.3,3.2078]
[1750114373590,5.9627,2569.7,2569.3,3.98589]
[1750114373791,5.9627,2569.7,2569.5,0.77803]
[1750114374196,5.9627,2569.7,2569.2,0.00584818]
[1750114374197,3.2078,2569.6,2569.2,0.00584818]
[1750114374501,5.9627,2569.5,2569.2,0.00584818]
[1750114374791,6.74077,2569.5,2569.2,0.00584818]
[1750114375007,5.9627,2569.5,2569.2,0.00584818]
[1750114375195,3.9838,2569.8,2569.4,0.77806]
[1750114375394,9.9302,2569.8,2569.4,0.77806]
[1750114375604,9.9302,2569.8,2569.2,0.00584818]
[1750114375605,0.77803,2569.6,2569.2,0.00584818]
[1750114375800,8.69962869,2569.7,2569.2,0.00584818]
[1750114376000,3.2078,2571.1,2569.6,3.2078]
[1750114376295,0.77778,2570.4,2569.9,0.77791]
[1750114376490,5.9464,2570.3,2570.0,0.77789]
[1750114376696,5.9464,2570.3,2570.0,3.2078]
[1750114376892,11.90742869,2571.1,2570.0,5.15251]
[1750114377087,3.98538,2571.1,2570.3,3.2078]
[1750114377291,5.9464,2571.0,2570.7,0.77768]
[1750114377498,5.9464,2571.0,2570.0,1.94473]
[1750114377499,5.9464,2571.0,2570.6,3.21363658]
[1750114377998,6.72401,2571.0,2570.6,3.99133658]
[1750114378295,3.2078,2570.7,2569.6,3.2078]
[1750114378490,3.2078,2570.2,2569.7,3.21360944]
[1750114378892,8.69962869,2570.0,2569.3,3.2078]
[1750114379095,0.77797,2569.8,2569.4,3.99166944]
[1750114379296,6.2086,2569.7,2569.4,3.99166944]
[1750114379489,6.9866,2569.7,2569.3,0.00583658]
[1750114379694,6.2086,2569.7,2569.4,3.21360944]
[1750114379898,6.2086,2569.7,2569.5,3.21360944]
[1750114380098,3.21359789,2569.9,2569.6,3.21360944]
[1750114380291,11.90742869,2570.8,2569.8,6.42140944]
[1750114380491,6.2086,2570.7,2569.9,3.21360944]
[1750114380799,8.69962869,2570.4,2569.6,3.21360944]
[1750114380995,3.2078,2570.2,2569.4,3.2078]
[1750114381198,6.2086,2570.1,2569.7,3.2078]
[1750114381504,3.2078,2570.5,2570.1,3.21360944]
[1750114381690,5.9466,2571.3,2570.4,3.21360944]
[1750114381893,3.2078,2570.8,2570.1,5.15247]
[1750114382096,3.2078,2570.8,2570.7,0.77768]
[1750114382504,3.2078,2571.2,2571.0,0.77759]
[1750114382701,5.9466,2571.3,2571.0,0.77759]